fUSD/lending_fUSD_20260115
["ID","MTS","AMOUNT","RATE_DAILY","PERIOD"]
[402013888,1768457474711,-500.0,0.00041917,30]
[402013889,1768457474720,-799.57,0.00041917,30]
[402013890,1768457474730,-500.0,0.00041917,30]
[402013891,1768457474740,-216.208089,0.00041917,120]
[402013892,1768457474749,-1219.46,0.00041917,30]
[402013893,1768457474758,-604.27,0.00041917,30]
[402013894,1768457474767,-769.82,0.00041917,30]
[402013895,1768457474777,-951.73,0.00041917,30]
[402013896,1768457474786,-500.0,0.00041917,30]
[402013897,1768457474796,-633.19,0.00041917,30]
[402013898,1768457474806,-839.49,0.00041917,30]
[402013899,1768457474885,-1179.02,0.00041917,30]
[402013900,1768457474895,-500.0,0.00041917,30]
[402013901,1768457474905,-2247.46,0.00041917,30]
[402013902,1768457474914,-500.0,0.00041917,30]
[402013903,1768457474923,-500.0,0.00041917,30]
[402013904,1768457474933,-500.0,0.00041917,30]
[402013905,1768457474942,-1156.41,0.00041917,30]
[402013906,1768457474950,-500.0,0.00041917,30]
[402013907,1768457474960,-500.0,0.00041917,30]
[402013908,1768457474969,-500.0,0.00041917,30]
[402013909,1768457474980,-605.2,0.00041917,30]
[402013910,1768457474989,-859.7,0.00041917,30]
[402013911,1768457474998,-626.97,0.00041917,30]
[402013912,1768457475008,-500.0,0.00041917,30]
[402013913,1768457475016,-500.0,0.00041917,30]
[402013914,1768457475026,-588.74,0.00041917,30]
[402013915,1768457475035,-1177.25,0.00041917,30]
[402013916,1768457475044,-300.0,0.00041917,2]
[402013917,1768457475052,-500.0,0.00041917,30]
[402013918,1768457475062,-2464.01,0.00041917,30]
[402013919,1768457475071,-502.48,0.00041917,30]
[402013920,1768457475079,-500.0,0.00041917,30]
[402013921,1768457475088,-500.0,0.00041917,30]
[402013922,1768457475097,-500.0,0.00041917,30]
[402013923,1768457475106,-500.0,0.00041917,30]
[402013924,1768457475115,-538.91,0.00041917,30]
[402013925,1768457475124,-500.0,0.00041917,16]
[402013926,1768457475133,-1591.4,0.00041917,30]
[402013927,1768457475142,-500.0,0.00041917,30]
[402013928,1768457475151,-578.12,0.00041917,30]
[402013929,1768457475160,-1475.67,0.00041917,30]
[402013930,1768457475169,-911.51,0.00041917,30]
[402013931,1768457475178,-733.23,0.00041917,30]
[402013932,1768457475187,-1360.43,0.00041917,30]
[402013933,1768457475196,-509.32,0.00041917,30]
[402013934,1768457475205,-708.8,0.00041917,30]
[402013935,1768457475214,-500.0,0.00041917,30]
[402013936,1768457475223,-500.0,0.00041917,30]
[402013937,1768457475234,-500.0,0.00041917,30]
[402013938,1768457475243,-500.0,0.00041917,30]
[402013939,1768457475252,-1202.12,0.00041917,30]
[402013940,1768457475261,-500.0,0.00041917,30]
[402013941,1768457475271,-500.0,0.00041917,30]
[402013942,1768457475280,-636.14,0.00041917,30]
[402013943,1768457475289,-1353.02,0.00041917,30]
[402013944,1768457475298,-1767.9,0.00041917,30]
[402013945,1768457475307,-1061.8,0.00041917,30]
[402013946,1768457475316,-500.0,0.00041917,30]
[402013947,1768457475325,-939.02,0.00041917,30]
[402013948,1768457475334,-610.32,0.00041917,30]
[402013949,1768457475344,-660.88,0.00041917,30]
[402013950,1768457475353,-500.0,0.00041917,30]
[402013951,1768457475362,-500.0,0.00041917,30]
[402013952,1768457475371,-500.0,0.00041917,30]
[402013953,1768457475381,-1140.08,0.00041917,30]
[402013954,1768457475390,-500.0,0.00041917,30]
[402013955,1768457475399,-500.0,0.00041917,30]
[402013956,1768457475408,-548.45,0.00041917,30]
[402013957,1768457475418,-340.42207067,0.00041917,30]
[402013958,1768457475427,-901.6,0.00041917,30]
[402013959,1768457475436,-500.0,0.00041917,30]
[402013960,1768457475446,-500.0,0.00041917,30]
[402013961,1768457475458,-1700.28,0.00041917,30]
[402013962,1768457475467,-500.0,0.00041917,30]
[402013963,1768457475476,-500.0,0.00041917,30]
[402013964,1768457475486,-725.19,0.00041917,30]
[402013965,1768457475497,-590.93,0.00041917,30]
[402013966,1768457475506,-862.64,0.00041917,30]
[402013967,1768457475515,-500.0,0.00041917,30]
[402013968,1768457475525,-565.39659774,0.00041917,30]
[402013969,1768457475535,-505.85,0.00041917,30]
[402013970,1768457475543,-500.0,0.00041917,30]
[402013971,1768457475552,-500.0,0.00041917,30]
[402013972,1768457475561,-500.0,0.00041917,30]
[402013973,1768457475570,-1534.14,0.00041917,30]
[402013974,1768457475580,-500.0,0.00041917,30]
[402013975,1768457475588,-500.0,0.00041917,30]
[402013976,1768457475597,-500.0,0.00041917,30]
[402013977,1768457475607,-934.36,0.00041917,30]
[402013978,1768457475616,-520.02,0.00041917,30]
[402013979,1768457475625,-1912.65,0.00041917,30]
[402013980,1768457475635,-1270.25,0.00041917,30]
[402013981,1768457475644,-500.0,0.00041917,30]
[402013982,1768457475654,-954.91,0.00041917,2]
[402013983,1768457475663,-500.0,0.00041917,30]
[402013984,1768457475672,-500.0,0.00041917,30]
[402013985,1768457475682,-1932.52,0.00041917,30]
[402013986,1768457475691,-500.0,0.00041917,30]
[402013987,1768457475701,-500.0,0.00041917,30]
[402013988,1768457475710,-529.6,0.00041917,30]
[402013989,1768457475719,-500.0,0.00041917,30]
[402013990,1768457475729,-2502.91,0.00041917,30]
[402013991,1768457475739,-500.0,0.00041917,30]
[402013992,1768457475748,-1172.39,0.00041917,30]
[402013993,1768457475757,-500.0,0.00041917,30]
[402013994,1768457475767,-816.46,0.00041917,30]
[402013995,1768457475776,-596.5,0.00041917,30]
[402013996,1768457475786,-500.0,0.00041917,30]
[402013997,1768457475794,-819.93,0.00041917,30]
[402013998,1768457475804,-500.0,0.00041917,30]
[402013999,1768457475813,-608.54,0.00041917,30]
[402014000,1768457475823,-500.0,0.00041917,30]
[402014001,1768457475832,-500.0,0.00041917,30]
[402014002,1768457475842,-500.0,0.00041917,30]
[402014003,1768457475851,-500.0,0.00041917,30]
[402014004,1768457475860,-549.02,0.00041917,30]
[402014005,1768457475870,-525.82,0.00041917,30]
[402014006,1768457475879,-500.0,0.00041917,30]
[402014007,1768457475888,-798.1,0.00041917,30]
[402014008,1768457475897,-956.28,0.00041917,30]
[402014009,1768457475906,-603.14,0.00041917,30]
[402014010,1768457475915,-500.0,0.00041917,30]
[402014011,1768457475925,-500.0,0.00041917,30]
[402014012,1768457475934,-521.56,0.00041917,30]
[402014013,1768457475943,-600.0,0.00041917,30]
[402014014,1768457475953,-839.13,0.00041917,30]
[402014015,1768457475963,-500.0,0.00041917,30]
[402014016,1768457475971,-613.7,0.00041917,30]
[402014017,1768457475982,-500.0,0.00041917,30]
[402014018,1768457475991,-1326.59,0.00041917,30]
[402014019,1768457476000,-536.66,0.00041917,30]
[402014020,1768457476009,-500.0,0.00041917,30]
[402014021,1768457476018,-500.0,0.00041917,30]
[402014022,1768457476027,-2038.63,0.00041917,30]
[402014023,1768457476036,-1089.28,0.00041917,30]
[402014024,1768457476045,-1881.89,0.00041917,30]
[402014025,1768457476055,-500.0,0.00041917,30]
[402014026,1768457476065,-896.38,0.00041917,30]
[402014027,1768457476074,-1155.3,0.00041917,30]
[402014028,1768457476084,-500.0,0.00041917,30]
[402014029,1768457476093,-663.46,0.00041917,30]
[402014030,1768457476102,-723.82,0.00041917,30]
[402014031,1768457476112,-1033.31,0.00041917,30]
[402014032,1768457476122,-500.0,0.00041917,30]
[402014033,1768457476131,-500.0,0.00041917,30]
[402014034,1768457476141,-500.0,0.00041917,30]
[402014035,1768457476150,-500.0,0.00041917,30]
[402014036,1768457476160,-500.0,0.00041917,30]
[402014037,1768457476169,-500.0,0.00041917,30]
[402014038,1768457476179,-500.0,0.00041917,30]
[402014039,1768457476188,-1391.17,0.00041917,30]
[402014040,1768457476198,-2353.86,0.00041917,30]
[402014041,1768457476207,-1566.62,0.00041917,30]
[402014042,1768457476216,-2417.67,0.00041917,30]
[402014043,1768457476225,-500.0,0.00041917,30]
[402014044,1768457476235,-937.37,0.00041917,30]
[402014045,1768457476245,-316.40454185,0.00041917,30]
[402014046,1768457476254,-500.0,0.00041917,30]
[402014047,1768457476264,-708.73,0.00041917,30]
[402014048,1768457476273,-957.4,0.00041917,30]
[402014049,1768457476282,-500.0,0.00041917,30]
[402014050,1768457476292,-500.0,0.00041917,30]
[402014051,1768457476301,-1411.27,0.00041917,30]
[402014052,1768457476310,-500.0,0.00041917,14]
[402014053,1768457476319,-643.3,0.00041917,30]
[402014054,1768457476330,-1001.58,0.00041917,30]
[402014055,1768457476339,-1078.39,0.00041917,30]
[402014056,1768457476348,-1192.85,0.00041917,30]
[402014057,1768457476357,-2018.6,0.00041917,30]
[402014058,1768457476366,-1210.17,0.00041917,30]
[402014059,1768457476376,-500.0,0.00041917,30]
[402014060,1768457476385,-567.34,0.00041917,30]
[402014061,1768457476394,-500.0,0.00041917,30]
[402014062,1768457476404,-500.0,0.00041917,30]
[402014063,1768457476413,-500.0,0.00041917,30]
[402014064,1768457476422,-1114.65,0.00041917,30]
[402014065,1768457476431,-500.0,0.00041917,30]
[402014066,1768457476441,-1466.30153448,0.00041917,30]
[402014067,1768457477065,-241.71846552,0.00041917,30]
[402014068,1768457477075,-526.33,0.00041917,30]
[402014069,1768457477084,-683.19,0.00041917,30]
[402014070,1768457477093,-792.36448167,0.00041917,30]
[402014071,1768457477151,-500.0,0.00041369,30]
[402014072,1768457477161,-570.82,0.00041369,30]
[402014073,1768457477171,-466.49551833,0.00041917,30]
[402014074,1768457477181,-500.0,0.00041917,30]
[402014075,1768457477191,-500.0,0.00041917,30]
[402014076,1768457477200,-71.59084587,0.00041917,30]
[402014077,1768457477729,-570.82,0.00041643,30]
[402014078,1768457477740,-500.0,0.00041643,30]
[402014079,1768457477750,-1046.66814581,0.00041817,2]
[402014080,1768457477760,-1584.02915413,0.00041917,30]
[402014081,1768457477770,-2227.25,0.00041917,30]
[402014082,1768457477780,-500.0,0.00041917,30]
[402014083,1768457477790,-563.06,0.00041917,30]
[402014084,1768457477800,-758.71,0.00041917,30]
[402014085,1768457477810,-500.0,0.00041917,30]
[402014086,1768457477821,-562.35,0.00041917,30]
[402014087,1768457477831,-670.26,0.00041917,30]
[402014088,1768457477842,-500.0,0.00041917,30]
[402014090,1768457477852,-500.0,0.00041917,30]
[402014091,1768457477862,-500.0,0.00041917,30]
[402014092,1768457477872,-606.78,0.00041917,30]
[402014093,1768457477885,-659.28,0.00041917,30]
[402014094,1768457477895,-556.98,0.00041917,30]
[402014095,1768457477905,-1056.69,0.00041917,30]
[402014096,1768457477916,-758.85,0.00041917,30]
[402014097,1768457477925,-1244.54,0.00041917,30]
[402014098,1768457477935,-945.69,0.00041917,30]
[402014099,1768457477946,-500.0,0.00041917,30]
[402014100,1768457477956,-500.0,0.00041917,30]
[402014101,1768457477965,-500.0,0.00041917,30]
[402014102,1768457477975,-196.24156376,0.00041917,30]
[402014103,1768457477999,-303.75843624,0.00041917,30]
[402014104,1768457478009,-203.4477215,0.00041917,30]
[402014105,1768457478021,-876.5622785,0.00041917,30]
[402014106,1768457478031,-523.31037414,0.00041917,30]
[402014107,1768457478043,-119.92962586,0.00041917,30]
[402014108,1768457478052,-208.33734235,0.00041917,30]
[402014109,1768457478064,-291.66265765,0.00041917,30]
[402014110,1768457478073,-197.08787335,0.00041917,30]
[402014111,1768457478093,-878.45672583,0.00041917,30]
[402014112,1768457478105,-1166.23540082,0.00041917,30]
[402014113,1768457478115,-500.0,0.00041917,30]
[402014114,1768457478125,-394.46459918,0.00041917,30]
[402014116,1768457478259,-105.53540082,0.00041917,30]
[402014117,1768457478269,-563.06,0.00041917,30]
[402014118,1768457478279,-441.03187911,0.00041917,30]
[402014119,1768457478291,-318.31812089,0.00041917,30]
[402014120,1768457478301,-889.68187911,0.00041917,30]
[402014121,1768457478313,-203.74812089,0.00041917,30]
[402014122,1768457478322,-500.0,0.00041917,30]
[402014123,1768457478332,-101.16155171,0.00041917,30]
[402014124,1768457478343,-804.27294865,0.00041917,30]
[402014125,1768457478374,-422.66549964,0.00041917,30]
[402014126,1768457478383,-500.0,0.00041917,30]
[402014127,1768457478393,-2331.95,0.00041917,30]
[402014128,1768457478403,-1848.93,0.00041917,30]
[402014129,1768457478413,-1465.14,0.00041917,30]
[402014130,1768457478423,-1757.19,0.00041917,30]
[402014131,1768457478432,-500.0,0.00041917,30]
[402014132,1768457478442,-1020.5,0.00041917,30]
[402014133,1768457478456,-500.0,0.00041917,30]
[402014134,1768457478466,-2683.99,0.00041917,30]
[402014135,1768457478476,-526.43,0.00041917,30]
[402014136,1768457478486,-919.76,0.00041917,30]
[402014137,1768457478497,-500.0,0.00041917,30]
[402014138,1768457478507,-522.23,0.00041917,30]
[402014139,1768457478517,-804.6,0.00041917,30]
[402014140,1768457478529,-500.0,0.00041917,30]
[402014141,1768457478538,-989.66,0.00041917,30]
[402014142,1768457478548,-1404.8,0.00041917,30]
[402014143,1768457478557,-1152.57,0.00041917,30]
[402014144,1768457478567,-500.0,0.00041917,30]
[402014145,1768457478577,-2134.33,0.00041917,30]
[402014146,1768457478587,-1306.82,0.00041917,30]
[402014147,1768457478596,-500.0,0.00041917,30]
[402014148,1768457478606,-1386.77,0.00041917,30]
[402014149,1768457478616,-500.0,0.00041917,30]
[402014150,1768457478626,-920.43,0.00041917,30]
[402014151,1768457478635,-500.0,0.00041917,30]
[402014152,1768457478645,-500.0,0.00041917,30]
[402014153,1768457478655,-760.77,0.00041917,30]
[402014154,1768457478665,-500.0,0.00041917,30]
[402014155,1768457478676,-500.0,0.00041917,30]
[402014156,1768457478686,-735.77,0.00041917,30]
[402014157,1768457478696,-500.0,0.00041917,30]
[402014158,1768457478706,-1128.46,0.00041917,30]
[402014159,1768457478716,-529.02,0.00041917,30]
[402014160,1768457478726,-566.59,0.00041917,30]
[402014161,1768457478736,-973.06,0.00041917,30]
[402014162,1768457478747,-2420.8,0.00041917,30]
[402014163,1768457478757,-500.0,0.00041917,30]
[402014164,1768457478767,-758.96,0.00041917,30]
[402014165,1768457478777,-500.0,0.00041917,30]
[402014166,1768457478787,-1514.71,0.00041917,30]
[402014167,1768457478797,-719.06,0.00041917,30]
[402014168,1768457478808,-500.0,0.00041917,30]
[402014169,1768457478818,-1100.58,0.00041917,30]
[402014170,1768457478827,-500.0,0.00041917,30]
[402014171,1768457478837,-605.49,0.00041917,30]
[402014172,1768457478848,-500.0,0.00041917,30]
[402014173,1768457478858,-500.0,0.00041917,30]
[402014174,1768457478867,-1055.56,0.00041917,30]
[402014175,1768457478877,-500.0,0.00041917,30]
[402014176,1768457478886,-1365.21,0.00041917,30]
[402014177,1768457478896,-682.39364384,0.00041917,30]
[402014178,1768457479762,-180.08512315,0.00035534,9]
[402014179,1768457479772,-243.64805511,0.00041817,2]
[402014180,1768457479782,-553.09635616,0.00041917,30]
[402014181,1768457479791,-4767.29,0.00041917,30]
[402014182,1768457479800,-1812.03,0.00041917,30]
[402014183,1768457479809,-1326.3,0.00041917,30]
[402014184,1768457479818,-257.99195131,0.00041917,30]
[402014185,1768457479827,-752.31,0.00041917,30]
[402014186,1768457479837,-500.0,0.00041917,30]
[402014187,1768457479846,-500.0,0.00041917,30]
[402014188,1768457479855,-529.5537048,0.00041917,30]
[402014189,1768457479865,-1808.66,0.00041917,30]
[402014190,1768457479874,-535.84,0.00041917,30]
[402014191,1768457479883,-500.0,0.00041917,30]
[402014192,1768457479892,-500.0,0.00041917,30]
[402014193,1768457479901,-500.0,0.00041917,30]
[402014194,1768457479910,-1229.13,0.00041917,30]
[402014195,1768457479920,-500.0,0.00041917,30]
[402014196,1768457479929,-704.68,0.00041917,30]
[402014197,1768457479938,-500.0,0.00041917,30]
[402014198,1768457479947,-500.0,0.00041917,30]
[402014199,1768457479957,-500.0,0.00041917,30]
[402014200,1768457479967,-500.0,0.00041917,30]
[402014201,1768457479976,-500.0,0.00041917,30]
[402014202,1768457479987,-608.31,0.00041917,30]
[402014203,1768457479996,-500.0,0.00041917,30]
[402014204,1768457480005,-500.0,0.00041917,30]
[402014205,1768457480017,-1541.35,0.00041917,30]
[402014206,1768457480026,-500.0,0.00041917,30]
[402014207,1768457480035,-713.76,0.00041917,30]
[402014208,1768457480045,-1441.38,0.00041917,30]
[402014209,1768457480054,-815.44,0.00041917,30]
[402014210,1768457480063,-1161.33,0.00041917,30]
[402014211,1768457480073,-500.0,0.00041917,30]
[402014212,1768457480082,-500.0,0.00041917,30]
[402014213,1768457480092,-500.0,0.00041917,30]
[402014214,1768457480101,-1453.7,0.00041917,30]
[402014215,1768457480111,-1560.93,0.00041917,30]
[402014216,1768457480120,-500.0,0.00041917,30]
[402014217,1768457480129,-207.37401763,0.00041917,30]
[402014218,1768457480140,-292.62598237,0.00041917,30]
[402014219,1768457480149,-773.82410679,0.00041917,30]
[402014220,1768457480161,-1263.26589321,0.00041917,30]
[402014221,1768457480170,-611.56211585,0.00041917,30]
[402014222,1768457480181,-739.94,0.00041917,30]
[402014223,1768457480237,-1496.27788415,0.00041917,30]
[402014224,1768457480247,-500.0,0.00041917,30]
[402014225,1768457480256,-500.0,0.00041917,30]
[402014226,1768457480266,-1300.27,0.00041917,30]
[402014227,1768457480276,-500.0,0.00041917,30]
[402014228,1768457480286,-814.99,0.00041917,30]
[402014229,1768457480296,-500.0,0.00041917,30]
[402014230,1768457480305,-651.85,0.00041917,30]
[402014231,1768457480315,-256.91178845,0.00041917,30]
[402014235,1768458048959,250.0,1.15e-06,120]
[402014280,1768458631516,-1936.75062507,0.00017088,2]
[402014295,1768458632135,-37.87642793,0.00017088,2]
[402014296,1768458632144,-159.255,0.00017174,2]
[402014297,1768458632154,-402.86857207,0.00017174,2]
[402014300,1768458637646,-643.00401913,0.00017174,2]
[402014301,1768458637777,-322.7392854,0.00017174,2]
[402014302,1768458637789,-246.3251234,0.00017174,2]
[402014303,1768458637799,-180.1355912,0.00017419,2]
[402014304,1768458637811,-475.56093075,0.00017419,2]
[402014305,1768458637822,-1972.78274802,0.00017419,2]
[402014307,1768458637837,-5329.68157997,0.00017419,2]
[402014308,1768458637846,-500.0,0.00017423,2]
[402014309,1768458637855,-500.0,0.00017423,2]
[402014310,1768458637864,-207.2205028,0.00017423,2]
[402014311,1768458637873,-500.0,0.00017423,2]
[402014312,1768458637881,-500.0,0.00017423,2]
[402014313,1768458637891,-500.0,0.00017423,2]
[402014314,1768458637899,-500.0,0.00017423,2]
[402014315,1768458637909,-500.0,0.00017423,2]
[402014316,1768458637918,-500.0,0.00017423,2]
[402014317,1768458637927,-500.0,0.00017423,2]
[402014318,1768458637936,-500.0,0.00017423,2]
[402014319,1768458637946,-500.0,0.00017423,2]
[402014320,1768458637956,-500.0,0.00017423,2]
[402014321,1768458637965,-500.0,0.00017423,2]
[402014322,1768458637974,-500.0,0.00017423,2]
[402014323,1768458637984,-500.0,0.00017423,2]
[402014324,1768458637993,-500.0,0.00017423,2]
[402014325,1768458638002,-500.0,0.00017423,2]
[402014326,1768458638011,-500.0,0.00017423,2]
[402014327,1768458638020,-500.0,0.00017423,2]
[402014328,1768458638030,-500.0,0.00017423,2]
[402014329,1768458638039,-500.0,0.00017423,2]
[402014330,1768458638048,-500.0,0.00017423,2]
[402014331,1768458638057,-500.0,0.00017423,2]
[402014332,1768458638066,-500.0,0.00017423,2]
[402014333,1768458638076,-500.0,0.00017423,2]
[402014334,1768458638085,-500.0,0.00017423,2]
[402014335,1768458638094,-580.32988594,0.00017423,2]
[402014336,1768458638103,-500.0,0.00017423,2]
[402014337,1768458638113,-500.0,0.00017423,2]
[402014338,1768458638122,-500.0,0.00017423,2]
[402014339,1768458638132,-500.0,0.00017423,2]
[402014340,1768458638141,-500.0,0.00017423,2]
[402014341,1768458638150,-500.0,0.00017423,2]
[402014342,1768458638159,-500.0,0.00017423,2]
[402014343,1768458638168,-500.0,0.00017423,2]
[402014344,1768458638177,-500.0,0.00017423,2]
[402014345,1768458638187,-500.0,0.00017423,2]
[402014346,1768458638197,-500.0,0.00017423,2]
[402014347,1768458638206,-500.0,0.00017423,2]
[402014348,1768458638215,-350.0,0.00017423,2]
[402014349,1768458638224,-500.0,0.00017423,2]
[402014350,1768458638234,-500.0,0.00017423,2]
[402014351,1768458638243,-500.0,0.00017423,2]
[402014352,1768458638253,-500.0,0.00017423,2]
[402014353,1768458638262,-170.0868034,0.00017424,2]
[402014354,1768458638271,-22048.32268194,0.00017424,2]
[402014359,1768458639966,-291.71752767,0.00017424,2]
[402014360,1768458639978,-406.95691,0.00017424,2]
[402014361,1768458639998,-977253.00288039,0.00017424,2]
[402014362,1768458640008,-151.0,0.00017519,2]
[402014363,1768458640017,-151.0,0.00017519,2]
[402014364,1768458640026,-1110.78417923,0.00017523,5]
[402014365,1768458640036,-578.49,0.00017524,2]
[402014366,1768458640045,-578.49,0.00017524,2]
[402014367,1768458640054,-578.49,0.00017524,2]
[402014368,1768458640064,-578.49,0.00017524,2]
[402014369,1768458640074,-954.37437652,0.000177,2]
[402014370,1768458640083,-954.37437648,0.00017733,2]
[402014371,1768458640092,-954.37437648,0.00017766,2]
[402014372,1768458640102,-954.37437648,0.00017799,2]
[402014373,1768458640111,-954.37437648,0.00017832,2]
[402014374,1768458640121,-954.37437648,0.00017864,2]
[402014375,1768458640130,-954.37437648,0.00017897,2]
[402014376,1768458640139,-61277.58009683,0.000179,2]
[402014377,1768458640149,-954.37437648,0.0001793,2]
[402014378,1768458640159,-954.37437648,0.00017963,2]
[402014379,1768458640168,-236.0,0.00017973,2]
[402014380,1768458640177,-736.0,0.00017973,2]
[402014381,1768458640187,-150.0,0.00017973,2]
[402014382,1768458640196,-535.24248566,0.0001799,2]
[402014383,1768458640205,-535.24248566,0.0001799,2]
[402014384,1768458640215,-535.24248566,0.0001799,2]
[402014385,1768458640224,-954.37437648,0.00017996,2]
[402014386,1768458640235,-207.07990023,0.00017996,2]
[402014387,1768458640245,-10818.54635313,0.00017999,2]
[402014388,1768458640254,-500.0,0.00017999,2]
[402014390,1768458640263,-385.36712982,0.00017999,2]
[402014392,1768458640274,-571.41757684,0.00017999,2]
[402014395,1768458640284,-500.0,0.00017999,2]
[402014396,1768458640292,-313.73668997,0.00017999,2]
[402014398,1768458640301,-500.0,0.00017999,2]
[402014400,1768458640310,-500.0,0.00017999,2]
[402014402,1768458640319,-500.0,0.00017999,2]
[402014404,1768458640328,-500.0,0.00017999,2]
[402014406,1768458640337,-173.00504845,0.00017999,2]
[402014407,1768458640347,-3004495.93678383,0.00018,2]
[402014408,1768458640373,-591.11871023,0.00018,2]
[402014409,1768458640384,-653.7286811,0.00018,2]
[402014410,1768458640394,-926.039998,0.00018,2]
[402014431,1768458642818,-196.00545657,0.00017419,2]
[402014432,1768458642827,-7958.16084988,0.00017483,2]
[402014433,1768458642836,-4976.91308647,0.00018,2]
[402014436,1768458645494,-446.54033922,0.00018,2]
[402014437,1768458645505,-3938.37569132,0.00018,2]
[402014438,1768458645518,-4821.10923164,0.00018,2]
[402014439,1768458645528,-555.77477322,0.00018,2]
[402014440,1768458645550,-5210.14308199,0.00018,2]
[402014441,1768458645561,-593.82396974,0.00018,2]
[402014442,1768458645595,-1089.88117537,0.00018,2]
[402014443,1768458645606,-266.80887864,0.00018,2]
[402014444,1768458645620,-547.44,0.00018,2]
[402014445,1768458645631,-4022.57045668,0.00018,2]
[402014446,1768458645676,-14178.81684653,0.00018,2]
[402014447,1768458645755,-102.02674203,0.00018,2]
[402014448,1768458645766,-662.51870035,0.00018,2]
[402014477,1768459184763,200.0,0.00016797,2]
[402014485,1768459329923,842.08740266,0.00017076,120]
[402014488,1768459361631,2936.35,0.00014346,2]
[402014493,1768459408161,1000.0,0.0003,120]
[402014495,1768459412834,188.46396796,0.00030073,120]
[402014504,1768459505170,180.79,0.00016802,2]
[402014510,1768459569151,187.79,0.0001682,2]
[402014517,1768459625110,172.71,0.00016712,2]
[402014570,1768459817729,1494.64,0.0001682,2]
[402014572,1768459831786,-1291.949,0.00017076,2]
[402014573,1768459831795,-200.0,0.00017184,2]
[402014574,1768459831804,-3201.53091741,0.00017248,2]
[402014575,1768459831813,-8584.35779636,0.00017248,2]
[402014576,1768459831823,-166.67,0.00017302,2]
[402014577,1768459831832,-111386.98536891,0.00017324,2]
[402014578,1768459831842,-2088.10419661,0.00017324,2]
[402014579,1768459831853,-1491.53744342,0.00017324,2]
[402014580,1768459831867,-1961.94354208,0.00017324,2]
[402014581,1768459831877,-428.83006423,0.00017324,2]
[402014582,1768459831892,-14407.529342,0.00017324,2]
[402014583,1768459831902,-1748.22741199,0.00017324,2]
[402014585,1768459831912,-562.59341924,0.00017324,2]
[402014595,1768459837779,-646.38013077,0.00017324,2]
[402014596,1768459837790,-1967.97227543,0.00017324,2]
[402014597,1768459837802,-430.22334511,0.00017324,2]
[402014598,1768459837900,-208103.86386247,0.00017324,2]
[402014789,1768459839941,-281.649,0.00017324,2]
[402014821,1768459840239,-654494.16059774,0.00017324,2]
[402014823,1768459840249,-3201.53091739,0.00017327,2]
[402014825,1768459840259,-8584.35779627,0.00017327,2]
[402014827,1768459840269,-170.0868034,0.00017348,2]
[402014829,1768459840279,-300.0,0.00017383,2]
[402014831,1768459840288,-3201.53091739,0.00017406,2]
[402014833,1768459840298,-8584.35779627,0.00017406,2]
[402014835,1768459840310,-200.0,0.00017414,2]
[402014837,1768459840319,-500.0,0.00017414,2]
[402014839,1768459840329,-500.0,0.00017414,2]
[402014841,1768459840339,-500.0,0.00017414,2]
[402014843,1768459840348,-500.0,0.00017414,2]
[402014845,1768459840358,-500.0,0.00017414,2]